bitfinex/quotes_BTCUSD_20240818
["timestamp","ask_amount","ask_price","bid_price","bid_amount"]
[1723945534267,0.00161122,59622.0,59621.0,2.83315452]
[1723945535154,0.00161122,59622.0,59621.0,2.83515452]
[1723945536081,0.00161122,59622.0,59621.0,2.75172533]
[1723945536934,0.00161122,59622.0,59621.0,2.74972533]
[1723945537162,0.00161122,59622.0,59621.0,2.75172533]
[1723945538174,0.00161122,59622.0,59621.0,2.87755615]
[1723945538394,0.00161122,59622.0,59621.0,2.84740222]
[1723945538593,0.00161122,59622.0,59621.0,3.04911031]
[1723945538835,0.00161122,59622.0,59621.0,2.91927949]
[1723945539036,0.00161122,59622.0,59621.0,2.55699079]
[1723945539247,0.00161122,59622.0,59621.0,2.6253282]
[1723945539373,0.00161122,59622.0,59621.0,2.62532518]
[1723945540041,0.00161122,59622.0,59621.0,2.6253273]
[1723945540200,0.00161122,59622.0,59621.0,2.79688184]
[1723945543306,0.00161122,59622.0,59621.0,2.82703619]
[1723945544015,0.04500776,59628.0,59627.0,0.143812]
[1723945544208,0.04500776,59628.0,59627.0,0.16498693]
[1723945544517,0.04500776,59628.0,59627.0,1.4620563]
[1723945544973,0.04500776,59628.0,59627.0,1.5626813]
[1723945545364,0.04500776,59628.0,59627.0,1.5706813]
[1723945545666,0.04600776,59628.0,59627.0,1.5826813]
[1723945546042,0.04600776,59628.0,59627.0,1.61809352]
[1723945546259,0.04600776,59628.0,59627.0,1.5826813]
[1723945547459,0.04683276,59628.0,59627.0,1.5826813]
[1723945549303,0.04683276,59628.0,59627.0,1.55108693]
[1723945551926,0.001825,59628.0,59627.0,1.55108693]
[1723945552173,0.001825,59628.0,59627.0,1.529912]
[1723945552358,0.001825,59628.0,59627.0,1.55108665]
[1723945555256,0.001825,59628.0,59627.0,1.55108684]
[1723945555505,0.001825,59628.0,59627.0,1.72264138]
[1723945556633,0.001825,59628.0,59627.0,1.45758684]
[1723945556779,0.001825,59628.0,59627.0,1.55108684]
[1723945559416,0.001825,59628.0,59627.0,1.60146046]
[1723945559777,0.001825,59628.0,59627.0,1.60236796]
[1723945560143,0.001825,59628.0,59627.0,1.55199434]
[1723945560345,0.001825,59628.0,59627.0,1.7739225]
[1723945560546,0.001825,59628.0,59627.0,2.0159475]
[1723945560767,0.001825,59628.0,59627.0,2.05135974]
[1723945560967,0.001825,59628.0,59627.0,2.05135932]
[1723945561368,0.001825,59628.0,59627.0,2.05136675]
[1723945561570,0.001825,59628.0,59627.0,1.99066675]
[1723945561782,0.001825,59628.0,59627.0,1.53716221]
[1723945562232,0.001825,59628.0,59627.0,1.39335021]
[1723945562469,0.118636,59628.0,59627.0,1.2863825]
[1723945562635,0.42572707,59628.0,59627.0,0.0209075]
[1723945562805,0.57624209,59628.0,59627.0,0.0209075]
[1723945562983,0.57623209,59628.0,59627.0,0.0209075]
[1723945563190,0.70150205,59628.0,59627.0,0.0209075]
[1723945563391,0.57623209,59628.0,59627.0,0.0129075]
[1723945563627,0.67631172,59628.0,59627.0,0.0129075]
[1723945563957,0.67532172,59628.0,59627.0,0.0009075]
[1723945564167,0.58124209,59628.0,59627.0,0.0019075]
[1723945564573,0.59116834,59628.0,59627.0,0.0019075]
[1723945565025,0.59216834,59628.0,59627.0,0.0019075]
[1723945565402,0.49054534,59628.0,59627.0,0.0019075]
[1723945565607,0.53454842,59628.0,59627.0,0.0009075]
[1723945565869,0.53654842,59628.0,59627.0,0.0009075]
[1723945566074,0.53954842,59628.0,59627.0,0.0009075]
[1723945566502,0.38892234,59628.0,59627.0,0.0009075]
[1723945566688,0.39192234,59628.0,59627.0,0.0009075]
[1723945567120,0.33618525,59628.0,59627.0,0.0009075]
[1723945568068,0.326259,59628.0,59627.0,0.0009075]
[1723945568275,0.326259,59628.0,59627.0,1.2663825]
[1723945568474,0.326259,59628.0,59627.0,1.40085075]
[1723945568896,0.326259,59628.0,59627.0,1.2663825]
[1723945569099,0.324259,59628.0,59627.0,1.2663825]
[1723945569305,0.319259,59628.0,59627.0,1.2663825]
[1723945569766,0.319259,59628.0,59627.0,1.2693825]
[1723945570053,0.318259,59628.0,59627.0,1.2693825]
[1723945570252,0.318259,59628.0,59627.0,1.2723825]
[1723945571250,0.319259,59628.0,59627.0,1.2723825]
[1723945571455,0.419882,59628.0,59627.0,1.2723825]
[1723945571724,0.418882,59628.0,59627.0,1.2663825]
[1723945571916,0.418882,59628.0,59627.0,1.2703825]
[1723945574398,0.418882,59628.0,59627.0,0.0049075]
[1723945575027,0.47461159,59628.0,59627.0,0.0049075]
[1723945575729,0.47461159,59628.0,59627.0,0.0009075]
[1723945575935,0.47561159,59628.0,59627.0,0.0019075]
[1723945576110,0.47961159,59628.0,59627.0,0.0019075]
[1723945576861,0.48361159,59628.0,59627.0,0.0019075]
[1723945577038,0.58423459,59628.0,59627.0,0.0019075]
[1723945577338,0.48261159,59628.0,59627.0,0.0009075]
[1723945577677,0.48361159,59628.0,59627.0,0.0019075]
[1723945580369,0.67773459,59628.0,59627.0,0.0019075]
[1723945590613,0.58423459,59628.0,59627.0,0.0019075]
[1723945590816,0.48361159,59628.0,59627.0,0.0019075]
[1723945591159,0.58423459,59628.0,59627.0,0.0019075]
[1723945595091,0.41711159,59628.0,59627.0,0.1442075]
[1723945597101,0.41711159,59628.0,59627.0,0.0794075]
[1723945607098,0.41711159,59628.0,59627.0,0.1409075]
[1723945607848,0.41711159,59628.0,59627.0,0.0794075]
[1723945614161,0.48271159,59628.0,59627.0,0.0019075]
[1723945614385,0.50902896,59628.0,59627.0,0.0019075]
[1723945614869,0.58415074,59628.0,59627.0,0.0019075]
[1723945616072,0.58415308,59628.0,59627.0,0.0019075]
[1723945617087,0.50902896,59628.0,59627.0,0.0019075]
[1723945617288,0.58415634,59628.0,59627.0,0.0019075]
[1723945618459,0.68477934,59628.0,59627.0,0.0019075]
[1723945618821,0.65846197,59628.0,59627.0,0.0019075]
[1723945620548,0.65847046,59628.0,59627.0,0.0019075]
[1723945620746,0.65847046,59628.0,59627.0,0.0782075]
[1723945620747,0.49224746,59628.0,59627.0,0.0782075]
[1723945623547,0.46719917,59628.0,59627.0,0.0782075]
[1723945625394,0.41711159,59628.0,59627.0,0.0782075]
[1723945625601,0.4671954,59628.0,59627.0,0.1437075]
[1723945626771,0.46719512,59628.0,59627.0,0.1437075]
[1723945626972,0.41711159,59628.0,59627.0,0.1437075]
[1723945627156,0.46719576,59628.0,59627.0,0.1437075]
[1723945630663,0.46719576,59628.0,59627.0,0.0782075]
[1723945630894,0.41711159,59628.0,59627.0,0.0782075]
[1723945631108,0.49224773,59628.0,59627.0,0.0782075]
[1723945634505,0.51729311,59628.0,59627.0,0.0782075]
[1723945636089,0.41711159,59628.0,59627.0,0.0782075]
[1723945640793,0.31648859,59628.0,59627.0,0.15707825]
[1723945640996,0.31648859,59628.0,59627.0,0.1427075]
[1723945642201,0.39168763,59628.0,59627.0,0.1427075]
[1723945642405,0.39168568,59628.0,59627.0,0.1427075]
[1723945642815,0.38268568,59628.0,59627.0,0.1417075]
[1723945643012,0.38768568,59628.0,59627.0,0.1427075]
[1723945643542,0.38668568,59628.0,59627.0,0.1417075]
[1723945643737,0.38968568,59628.0,59627.0,0.1417075]
[1723945643890,0.39068568,59628.0,59627.0,0.1417075]
[1723945647586,0.31548859,59628.0,59627.0,0.1417075]
[1723945647952,0.49130868,59628.0,59627.0,0.1417075]
[1723945648351,0.41611159,59628.0,59627.0,0.1417075]
[1723945652681,0.49130868,59628.0,59627.0,0.1417075]
[1723945653098,0.41611159,59628.0,59627.0,0.1417075]
[1723945662007,0.49130477,59628.0,59627.0,0.1417075]
[1723945662412,0.41611159,59628.0,59627.0,0.1417075]
[1723945663431,0.49130477,59628.0,59627.0,0.1417075]
[1723945664723,0.49130477,59628.0,59627.0,0.0772075]
[1723945665706,0.49134773,59628.0,59627.0,0.0772075]
[1723945666345,0.41611159,59628.0,59627.0,0.0772075]
[1723945666794,0.51642645,59628.0,59627.0,0.0772075]
[1723945668281,0.51642645,59628.0,59627.0,0.0009075]
[1723945668905,0.61704945,59628.0,59627.0,0.0009075]
[1723945669112,0.48201159,59628.0,59627.0,0.0009075]
[1723945669330,0.69394994,59628.0,59627.0,0.0009075]
[1723945669745,0.58263459,59628.0,59627.0,0.0009075]
[1723945670147,0.70802573,59628.0,59627.0,0.0009075]
[1723945670417,0.57563459,59628.0,59627.0,0.0009075]
[1723945670817,0.58163459,59628.0,59627.0,0.0019075]
[1723945671069,0.58163459,59628.0,59627.0,0.0845075]
[1723945671070,0.64110832,59628.0,59627.0,0.0845075]
[1723945671261,0.51473459,59628.0,59627.0,0.0845075]
[1723945671616,0.42111159,59628.0,59627.0,0.0855075]
[1723945671813,0.52140766,59628.0,59627.0,0.0855075]
[1723945672038,0.51440766,59628.0,59627.0,0.0845075]
[1723945672422,0.52140766,59628.0,59627.0,0.0855075]
[1723945673504,0.42111159,59628.0,59627.0,0.0855075]
[1723945673706,0.42111159,59628.0,59627.0,0.1458075]
[1723945675420,0.49632646,59628.0,59627.0,0.1458075]
[1723945675595,0.42111159,59628.0,59627.0,0.1458075]
[1723945675816,0.49632607,59628.0,59627.0,0.1458075]
[1723945676392,0.4963258,59628.0,59627.0,0.1458075]
[1723945677476,0.42111159,59628.0,59627.0,0.1458075]
[1723945677748,0.49632215,59628.0,59627.0,0.1458075]
[1723945678376,0.42111159,59628.0,59627.0,0.1458075]
[1723945679560,0.44742831,59628.0,59627.0,0.1458075]
[1723945685915,0.42111159,59628.0,59627.0,0.1458075]
[1723945694726,0.42111159,59628.0,59627.0,0.0855075]
[1723945694925,0.42111159,59628.0,59627.0,0.0029075]
[1723945695350,0.521427,59628.0,59627.0,0.0029075]
[1723945695465,0.69322777,59628.0,59627.0,0.0029075]
[1723945695680,0.69622777,59628.0,59627.0,0.0029075]
[1723945695934,0.97132389,59628.0,59627.0,0.0029075]
[1723945696347,0.96432389,59628.0,59627.0,0.0019075]
[1723945696540,0.96423926,59628.0,59627.0,0.0019075]
[1723945696765,0.96423926,59628.0,59627.0,0.0029075]
[1723945696766,0.97123926,59628.0,59627.0,0.0029075]
[1723945697170,0.96423926,59628.0,59627.0,0.0019075]
[1723945697375,0.97758884,59628.0,59627.0,0.0009075]
[1723945697579,0.97758884,59628.0,59627.0,0.0019075]
[1723945697580,0.81530658,59628.0,59627.0,0.0019075]
[1723945697782,0.2974,59622.0,59621.0,0.0009075]
[1723945697983,0.56962959,59622.0,59621.0,0.0009075]
[1723945699607,0.5820854,59622.0,59621.0,0.0009075]
[1723945700236,0.59232614,59622.0,59621.0,0.0009075]
[1723945701000,0.60532614,59622.0,59621.0,0.0009075]
[1723945701223,0.6827621,59622.0,59621.0,0.0009075]
[1723945701627,0.83271484,59622.0,59621.0,0.0009075]
[1723945702777,0.6827621,59622.0,59621.0,0.0009075]
[1723945703764,0.50782614,59622.0,59621.0,0.0009075]
[1723945703970,0.50982614,59622.0,59621.0,0.0009075]
[1723945704168,0.60332614,59622.0,59621.0,0.0009075]
[1723945705044,0.60532614,59622.0,59621.0,0.0009075]
[1723945705662,0.51182614,59622.0,59621.0,0.0009075]
[1723945705891,0.60132614,59622.0,59621.0,0.0009075]
[1723945706117,0.60332614,59622.0,59621.0,0.0009075]
[1723945706350,0.60532614,59622.0,59621.0,0.0009075]
[1723945706956,0.67683974,59622.0,59621.0,0.0009075]
[1723945707172,0.67883974,59622.0,59621.0,0.0009075]
[1723945707554,0.80362648,59622.0,59621.0,0.0009075]
[1723945707899,0.72811288,59622.0,59621.0,0.0009075]
[1723945708474,0.73011288,59622.0,59621.0,0.0009075]
[1723945710226,0.60532614,59622.0,59621.0,0.0009075]
[1723945710468,0.73009176,59622.0,59621.0,0.0009075]
[1723945711034,0.60532614,59622.0,59621.0,0.0009075]
[1723945711696,0.67833532,59622.0,59621.0,0.0009075]
[1723945713360,0.7741192,59622.0,59621.0,0.0009075]
[1723945713613,0.54521002,59622.0,59621.0,0.0009075]
[1723945713843,0.53892614,59622.0,59621.0,0.0009075]
[1723945714044,0.61376359,59622.0,59621.0,0.0009075]
[1723945714674,0.61376109,59622.0,59621.0,0.0009075]
[1723945714885,0.588818,59622.0,59621.0,0.0009075]
[1723945716292,0.588818,59622.0,59621.0,0.0785075]
[1723945716865,0.66516129,59622.0,59621.0,0.0785075]
[1723945717065,0.71504937,59622.0,59621.0,0.0785075]
[1723945717515,0.71504937,59622.0,59621.0,0.0009075]
[1723945717716,0.61526943,59622.0,59621.0,0.0009075]
[1723945717892,0.68346943,59622.0,59621.0,0.0009075]
[1723945718116,0.78324937,59622.0,59621.0,0.0009075]
[1723945719103,0.005,59618.0,59617.0,0.0010275]
[1723945719306,0.005,59618.0,59607.0,0.0009075]
[1723945719307,0.235,59612.0,59607.0,0.0009075]
[1723945719508,0.64624001,59612.0,59607.0,0.0009075]
[1723945719743,0.57188541,59612.0,59607.0,0.0009075]
[1723945719952,0.74797593,59612.0,59607.0,0.0009075]
[1723945720538,0.57188541,59612.0,59607.0,0.0009075]
[1723945720736,0.58588541,59612.0,59607.0,0.0009075]
[1723945720937,0.63174445,59612.0,59607.0,0.0009075]
[1723945721112,0.58188541,59612.0,59607.0,0.0009075]
[1723945721318,0.50238541,59612.0,59607.0,0.0009075]
[1723945721519,0.59588541,59612.0,59607.0,0.0009075]
[1723945721715,0.59988541,59612.0,59607.0,0.0009075]
[1723945721936,0.66374359,59612.0,59607.0,0.0009075]
[1723945722361,0.74757129,59612.0,59607.0,0.0009075]
[1723945723188,0.69771311,59612.0,59607.0,0.0009075]
[1723945724231,0.79740818,59612.0,59607.0,0.0009075]
[1723945724436,0.69771311,59612.0,59607.0,0.0009075]
[1723945725127,0.70776356,59612.0,59607.0,0.0009075]
[1723945726641,0.005,59609.0,59607.0,0.0009075]
[1723945726843,0.005,59608.0,59607.0,0.0009075]
[1723945727043,0.28339589,59608.0,59607.0,0.0009075]
[1723945727470,0.18372959,59608.0,59607.0,0.0009075]
[1723945727644,0.35142779,59608.0,59607.0,0.0009075]
[1723945727860,0.25177854,59608.0,59607.0,0.0009075]
[1723945728041,0.31357854,59608.0,59607.0,0.0009075]
[1723945728864,0.34157854,59608.0,59607.0,0.0009075]
[1723945729326,0.34157854,59608.0,59596.0,0.087275]
[1723945729327,0.231,59597.0,59596.0,0.087275]
[1723945729516,0.50322959,59597.0,59596.0,0.087275]
[1723945729689,0.50522959,59597.0,59596.0,0.087275]
[1723945729891,0.40972959,59597.0,59596.0,0.087275]
[1723945730092,0.41172959,59597.0,59596.0,0.087275]
[1723945730296,0.40972959,59597.0,59596.0,0.087275]
[1723945731057,0.41872959,59597.0,59596.0,0.087275]
[1723945731799,0.41972959,59597.0,59596.0,0.087275]
[1723945732025,0.43372959,59597.0,59596.0,0.087275]
[1723945732834,0.50208428,59597.0,59596.0,0.087275]
[1723945733234,0.51608428,59597.0,59596.0,0.087275]
[1723945733781,0.51808428,59597.0,59596.0,0.087275]
[1723945733903,0.57136128,59597.0,59596.0,0.087275]
[1723945734108,0.57836128,59597.0,59596.0,0.087275]
[1723945734511,0.55536128,59597.0,59596.0,0.087275]
[1723945734754,0.56636128,59597.0,59596.0,0.148475]
[1723945734958,0.57636128,59597.0,59596.0,0.148475]
[1723945736573,0.18392005,59597.0,59596.0,0.148475]
[1723945738528,0.28392005,59597.0,59596.0,0.148475]
[1723945741634,0.28392005,59597.0,59596.0,0.087275]
[1723945741842,0.30692005,59597.0,59596.0,0.087275]
[1723945742238,0.30792005,59597.0,59596.0,0.087275]
[1723945742637,0.3577825,59597.0,59596.0,0.087275]
[1723945743135,0.46729822,59597.0,59596.0,0.087275]
[1723945745063,0.49232358,59597.0,59596.0,0.087275]
[1723945745268,0.41743577,59597.0,59596.0,0.087275]
[1723945746072,0.49230383,59597.0,59596.0,0.087275]
[1723945746489,0.5186353,59597.0,59596.0,0.087275]
[1723945747327,0.51863198,59597.0,59596.0,0.087275]
[1723945747956,0.52063198,59597.0,59596.0,0.087275]
[1723945748152,0.52263198,59597.0,59596.0,0.087275]
[1723945750017,0.50281626,59597.0,59596.0,0.087275]
[1723945750703,0.42795152,59597.0,59596.0,0.087275]
[1723945755517,0.42795152,59597.0,59596.0,0.147775]
[1723945755825,0.47785785,59597.0,59596.0,0.147775]
[1723945756026,0.47785701,59597.0,59596.0,0.147775]
[1723945756598,0.42795152,59597.0,59596.0,0.147775]
[1723945758514,0.50281047,59597.0,59596.0,0.147775]
[1723945759493,0.50181047,59597.0,59596.0,0.147775]
[1723945759937,0.50281047,59597.0,59596.0,0.147775]
[1723945760111,0.50181047,59597.0,59596.0,0.147775]
[1723945760546,0.40395152,59597.0,59596.0,0.147775]
[1723945761332,0.50381762,59597.0,59596.0,0.147775]
[1723945761557,0.50487216,59597.0,59596.0,0.147775]
[1723945761742,0.50387216,59597.0,59596.0,0.147775]
[1723945762494,0.52878415,59597.0,59596.0,0.147775]
[1723945763097,0.52978415,59597.0,59596.0,0.147775]
[1723945763507,0.40495152,59597.0,59596.0,0.147775]
[1723945763710,0.40695152,59597.0,59596.0,0.147775]
[1723945765088,0.40695152,59597.0,59596.0,0.087275]
[1723945767234,0.40895152,59597.0,59596.0,0.087275]
[1723945767502,0.43195152,59597.0,59596.0,0.087275]
[1723945768012,0.42795152,59597.0,59596.0,0.087275]
[1723945768756,0.57975067,59597.0,59596.0,0.087275]
[1723945769227,0.57823976,59597.0,59596.0,0.087275]
[1723945769748,0.42795152,59597.0,59596.0,0.087275]
[1723945773933,0.43195152,59597.0,59596.0,0.087275]
[1723945774885,0.42795152,59597.0,59596.0,0.087275]
[1723945775572,0.43195152,59597.0,59596.0,0.087275]
[1723945776032,0.33425152,59597.0,59596.0,0.087275]
[1723945776260,0.42795152,59597.0,59596.0,0.087275]
[1723945776908,0.42695152,59597.0,59596.0,0.087275]
[1723945777054,0.42695152,59597.0,59596.0,0.147975]
[1723945777866,0.40395152,59597.0,59596.0,0.147975]
[1723945782950,0.40495152,59597.0,59596.0,0.147975]
[1723945783353,0.40695152,59597.0,59596.0,0.147975]
[1723945783768,0.40395152,59597.0,59596.0,0.147975]
[1723945785013,0.40695152,59597.0,59596.0,0.147975]
[1723945785418,0.57620492,59597.0,59596.0,0.147975]
[1723945785656,0.40695152,59597.0,59596.0,0.147975]
[1723945786306,0.40395152,59597.0,59596.0,0.147975]
[1723945789869,0.57326609,59597.0,59596.0,0.147975]
[1723945790115,0.40395152,59597.0,59596.0,0.147975]
[1723945794746,0.31025152,59597.0,59596.0,0.147975]
[1723945797552,0.31025152,59597.0,59596.0,0.142975]
[1723945798774,0.66261752,59597.0,59596.0,0.142975]
[1723945812271,0.7879413,59597.0,59596.0,0.142975]
[1723945814463,0.78792117,59597.0,59596.0,0.142975]
[1723945821225,0.49426691,59597.0,59596.0,0.142975]
[1723945821418,0.36919752,59597.0,59596.0,0.142975]
[1723945821577,0.44354205,59597.0,59596.0,0.142975]
[1723945822003,0.43254205,59597.0,59596.0,0.142975]
[1723945822344,0.35833305,59597.0,59596.0,0.142975]
[1723945822548,0.36833305,59597.0,59596.0,0.1572725]
[1723945822755,0.46833305,59597.0,59596.0,0.1572725]
[1723945823694,0.45733305,59597.0,59596.0,0.1572725]
[1723945823897,0.44815805,59597.0,59596.0,0.1572725]
[1723945824112,0.45415805,59597.0,59596.0,0.1572725]
[1723945824317,0.46015805,59597.0,59596.0,0.1572725]
[1723945824519,0.46015805,59597.0,59596.0,0.142975]
[1723945827321,0.51028712,59597.0,59596.0,0.142975]
[1723945829433,0.50983654,59597.0,59596.0,0.142975]
[1723945833134,0.45970747,59597.0,59596.0,0.142975]
[1723945835376,0.45970747,59597.0,59596.0,0.1572725]
[1723945836124,0.45970747,59597.0,59596.0,0.142975]
[1723945836324,0.5349087,59597.0,59596.0,0.142975]
[1723945840196,0.6355847,59597.0,59596.0,0.142975]
[1723945840640,0.5349087,59597.0,59596.0,0.142975]
[1723945841075,0.45970747,59597.0,59596.0,0.142975]
[1723945842120,0.53496828,59597.0,59596.0,0.142975]
[1723945843193,0.63564428,59597.0,59596.0,0.142975]
[1723945843391,0.53496828,59597.0,59596.0,0.142975]
[1723945844212,0.45970747,59597.0,59596.0,0.142975]
[1723945844431,0.45970747,59597.0,59596.0,0.1572725]
[1723945846417,0.53496932,59597.0,59596.0,0.1572725]
[1723945847177,0.53496932,59597.0,59596.0,0.142975]
[1723945847834,0.45970747,59597.0,59596.0,0.142975]
[1723945852772,0.56038347,59597.0,59596.0,0.142975]
[1723945853135,0.56038347,59597.0,59596.0,0.082275]
[1723945854223,0.66074004,59597.0,59596.0,0.082275]
[1723945855816,0.68582918,59597.0,59596.0,0.082275]
[1723945860325,0.56038347,59597.0,59596.0,0.082275]
[1723945860511,0.6858659,59597.0,59596.0,0.082275]
[1723945862164,0.6858659,59597.0,59596.0,0.004075]
[1723945862165,0.81845947,59597.0,59596.0,0.004075]
[1723945862425,0.96903839,59597.0,59596.0,0.004075]
[1723945863202,0.86836239,59597.0,59596.0,0.004075]
[1723945863627,0.86835604,59597.0,59596.0,0.004075]
[1723945863830,0.96903204,59597.0,59596.0,0.004075]
[1723945864570,0.81845947,59597.0,59596.0,0.004075]
[1723945865751,0.71778347,59597.0,59596.0,0.004075]
[1723945866294,0.81845947,59597.0,59596.0,0.004075]
[1723945866824,0.71778347,59597.0,59596.0,0.004075]
[1723945868814,0.81845947,59597.0,59596.0,0.004075]
[1723945869257,0.71778347,59597.0,59596.0,0.004075]
[1723945869885,0.81845947,59597.0,59596.0,0.004075]
[1723945870697,0.65408347,59597.0,59596.0,0.086775]
[1723945871856,0.75475947,59597.0,59596.0,0.086775]
[1723945872482,0.65408347,59597.0,59596.0,0.086775]
[1723945882307,0.68041361,59597.0,59596.0,0.086775]
[1723945882928,0.68041361,59597.0,59596.0,0.004075]
[1723945883136,0.74521361,59597.0,59596.0,0.004075]
[1723945884892,0.68041361,59597.0,59596.0,0.086775]
[1723945885134,0.58671361,59597.0,59596.0,0.1015325]
[1723945885332,0.68041361,59597.0,59596.0,0.1015325]
[1723945885539,0.68041361,59597.0,59596.0,0.086775]
[1723945889783,0.58671361,59597.0,59596.0,0.086775]
[1723945889994,0.68041361,59597.0,59596.0,0.086775]
[1723945892285,0.58671361,59597.0,59596.0,0.150475]
[1723945892493,0.58671361,59597.0,59596.0,0.1655225]
[1723945892752,0.56038347,59597.0,59596.0,0.1655225]
[1723945892968,0.56038347,59597.0,59596.0,0.150475]
[1723945907084,0.45970747,59597.0,59596.0,0.150475]
[1723945907291,0.45970747,59597.0,59596.0,0.145475]
[1723945908268,0.45970747,59597.0,59596.0,0.1463825]
[1723945911183,0.45970747,59597.0,59596.0,0.16102075]
[1723945911391,0.45970747,59597.0,59596.0,0.1463825]
[1723945914133,0.56038347,59597.0,59596.0,0.1463825]
[1723945914337,0.45970747,59597.0,59596.0,0.0826825]
[1723945916649,0.56038347,59597.0,59596.0,0.0826825]
[1723945918893,0.45970747,59597.0,59596.0,0.0826825]
[1723945919993,0.56038347,59597.0,59596.0,0.0826825]
[1723945921243,0.56038347,59597.0,59596.0,0.0009075]
[1723945921244,0.65408347,59597.0,59596.0,0.0009075]
[1723945921455,0.83835947,59597.0,59596.0,5e-07]
[1723945921670,0.83935947,59597.0,59596.0,5e-07]
[1723945921880,0.94569542,59597.0,59596.0,5e-07]
[1723945922294,0.84135947,59597.0,59596.0,5e-07]
[1723945922510,0.83535947,59597.0,59596.0,5e-07]
[1723945923206,0.84335947,59597.0,59596.0,5e-07]
[1723945923864,0.85735947,59597.0,59596.0,5e-07]
[1723945924313,0.84335947,59597.0,59596.0,5e-07]
[1723945924526,1.02649364,59597.0,59596.0,5e-07]
[1723945924738,0.87135947,59597.0,59596.0,5e-07]
[1723945925152,0.85735947,59597.0,59596.0,5e-07]
[1723945925329,0.87135947,59597.0,59596.0,5e-07]
[1723945932169,0.86835947,59597.0,59596.0,5e-07]
[1723945932371,0.87135947,59597.0,59596.0,5e-07]
[1723945932577,1.02158581,59597.0,59596.0,5e-07]
[1723945934245,1.14394439,59597.0,59596.0,5e-07]
[1723945935684,1.02158581,59597.0,59596.0,5e-07]
[1723945936723,0.87135947,59597.0,59596.0,5e-07]
[1723945937333,1.02155376,59597.0,59596.0,5e-07]
[1723945941174,0.92585376,59597.0,59596.0,5e-07]
[1723945941318,1.02155376,59597.0,59596.0,5e-07]
[1723945941520,1.0215312,59597.0,59596.0,5e-07]
[1723945941724,0.87135947,59597.0,59596.0,5e-07]
[1723945942531,0.99559687,59597.0,59596.0,5e-07]
[1723945943620,0.98159687,59597.0,59596.0,5e-07]
[1723945943825,0.99559687,59597.0,59596.0,5e-07]
[1723945944672,0.96759687,59597.0,59596.0,5e-07]
[1723945944891,0.98159687,59597.0,59596.0,5e-07]
[1723945945730,0.70005947,59597.0,59596.0,5e-07]
[1723945945930,0.70005947,59597.0,59596.0,0.0815005]
[1723945945931,0.94393404,59597.0,59596.0,0.0815005]
[1723945946138,0.92993404,59597.0,59596.0,0.0815005]
[1723945946266,0.91593404,59597.0,59596.0,0.0815005]
[1723945946479,0.94393404,59597.0,59596.0,0.0815005]
[1723945948175,0.79375947,59597.0,59596.0,0.0815005]
[1723945949353,0.67705947,59597.0,59596.0,0.0815005]
[1723945949586,0.77075947,59597.0,59596.0,0.1453005]
[1723945950821,0.67705947,59597.0,59596.0,0.1453005]
[1723945951023,0.77075947,59597.0,59596.0,0.1453005]
[1723945951619,0.89594147,59597.0,59596.0,0.1453005]
[1723945952224,0.77075947,59597.0,59596.0,0.1453005]
[1723945952427,0.89594052,59597.0,59596.0,0.1453005]
[1723945952646,0.77075947,59597.0,59596.0,0.1453005]
[1723945952867,0.89594661,59597.0,59596.0,0.1453005]
[1723945953716,0.80224661,59597.0,59596.0,0.1453005]
[1723945953950,0.89594661,59597.0,59596.0,0.1453005]
[1723945954767,0.77075947,59597.0,59596.0,0.1453005]
[1723945954991,0.89595933,59597.0,59596.0,0.1453005]
[1723945955202,0.77075947,59597.0,59596.0,0.1453005]
[1723945956463,0.77075947,59597.0,59596.0,0.15983055]
[1723945956464,0.47638347,59597.0,59596.0,0.15983055]
[1723945956699,0.55151682,59597.0,59596.0,0.1453005]
[1723945956806,0.55151608,59597.0,59596.0,0.1453005]
[1723945958061,0.65151608,59597.0,59596.0,0.1453005]
[1723945959133,0.55084008,59597.0,59596.0,0.1453005]
[1723945959365,0.47570747,59597.0,59596.0,0.1453005]
[1723945959996,0.47570747,59597.0,59596.0,0.15983055]
[1723945960418,0.47570747,59597.0,59596.0,0.1453005]
[1723945960854,0.44770747,59597.0,59596.0,0.1453005]
[1723945961939,0.45570747,59597.0,59596.0,0.1453005]
[1723945962149,0.46970747,59597.0,59596.0,0.1453005]
[1723945962743,0.45570747,59597.0,59596.0,0.1453005]
[1723945963149,0.46470747,59597.0,59596.0,0.1453005]
[1723945963367,0.55840747,59597.0,59596.0,0.1453005]
[1723945964074,0.65908347,59597.0,59596.0,0.1453005]
[1723945964275,0.55840747,59597.0,59596.0,0.1453005]
[1723945966562,0.36403147,59597.0,59596.0,0.1453005]
[1723945966767,0.41412608,59597.0,59596.0,0.1453005]
[1723945967180,0.51480208,59597.0,59596.0,0.1453005]
[1723945967382,0.41412608,59597.0,59596.0,0.1453005]
[1723945968049,0.51480208,59597.0,59596.0,0.1453005]
[1723945968338,0.54113065,59597.0,59596.0,0.1453005]
[1723945970363,0.54113065,59597.0,59596.0,0.14985197]
[1723945972223,0.49103604,59597.0,59596.0,0.14985197]
[1723945974594,0.25044658,59597.0,59596.0,0.25721871]
[1723945974794,0.14977058,59597.0,59596.0,0.25721871]
[1723945975009,0.09449157,59597.0,59596.0,0.25721871]
[1723945975370,0.18616757,59597.0,59596.0,0.25721871]
[1723945975844,0.18216757,59597.0,59596.0,0.25721871]
[1723945976041,0.18516757,59597.0,59596.0,0.25721871]
[1723945980887,0.28584357,59597.0,59596.0,0.25721871]
[1723945981082,0.28584357,59597.0,59596.0,0.14985197]
[1723945981083,0.31584357,59597.0,59596.0,0.14985197]
[1723945981285,0.47097874,59597.0,59596.0,0.14985197]
[1723945982195,0.47093062,59597.0,59596.0,0.14985197]
[1723945985097,0.47093062,59597.0,59596.0,0.1453005]
[1723945985507,0.47093062,59597.0,59596.0,0.0815005]
[1723945985709,0.72853062,59597.0,59596.0,5e-07]
[1723945985910,0.82920662,59597.0,59596.0,5e-07]
[1723945986112,0.90434539,59597.0,59596.0,5e-07]
[1723945986310,0.95043791,59597.0,59596.0,5e-07]
[1723945986819,0.95943791,59597.0,59596.0,5e-07]
[1723945987128,0.95043791,59597.0,59596.0,5e-07]
[1723945987328,0.92410934,59597.0,59596.0,5e-07]
[1723945987673,0.92110934,59597.0,59596.0,5e-07]
[1723945987875,0.93510934,59597.0,59596.0,5e-07]
[1723945988431,0.94910934,59597.0,59596.0,5e-07]
[1723945988601,0.83787805,59597.0,59596.0,5e-07]
[1723945992864,0.68027805,59597.0,59596.0,5e-07]
[1723945993064,0.68027805,59597.0,59596.0,0.0826005]
[1723945993265,0.77397805,59597.0,59596.0,0.0826005]
[1723945994264,0.89930302,59597.0,59596.0,0.0826005]
[1723945994629,0.79862393,59597.0,59596.0,0.1459005]
[1723945994840,0.67330205,59597.0,59596.0,0.1459005]
[1723945995040,0.67330205,59597.0,59596.0,0.0826005]
[1723945995727,0.79862393,59597.0,59596.0,0.0826005]